[Event "Slovakian-ch Youth 2022"]
[Site "Lubovna"]
[Date "2022.05.22"]
[Round "1.7"]
[White "Bidulsky, Matej"]
[Black "Gyerpal, Adrian"]
[Result "0-1"]
[ECO "B10"]
[WhiteElo "1800"]
[BlackElo "2171"]
[Annotator "TA"]
[PlyCount "154"]
[EventDate "2022.05.22"]
[EventCountry "SVK"]
[SourceTitle "playchess.com"]
[Source "ChessBase"]
[SourceQuality "1"]
[TimeControl "40/5400+30:1800+30"]

{[%evp 12,154,18,-12,14,0,-9,0,-4,-50,-37,-58,-49,-55,-22,-97,-101,-100,-110,-133,-133,-130,-122,-123,-124,-119,-132,-125,-121,-127,-124,-140,-141,-146,-146,-146,-147,-147,-145,-136,-137,-137,-131,-150,-86,-96,-77,-88,-70,-72,-52,-124,-87,-80,-47,-79,-70,-109,-105,-137,-123,-405,-388,-5900,-222,-160,-121,-309,-260,-585,-566,-481,-466,-389,0,0,0,0,0,0,0,0,0,0,0,0,0,-5297,-6939,-3708,-582,-1651,-1605,-1238,-616,-12834,-12835,-12835,-12833,-12833,-12814,-12678,-12587,-12816,-12816,-12831,-12831,-11447,-1102,-11447,-1668,-925,-1002,-12834,-12835,-12835,-12835,-12835,-12834,-12836,-12832,-12839,-12840,-12841,-12841,-12841,-12842,-12841,-12842,-12843,-12840,-12841,-12841,-12850,-27999,-27999,-27999,-27999,-27999,-27999,-27999,-27999,-27999,-27999,-27999]} 1. e4 {[%emt 0:01:14]} c6 {[%emt 0:00:07]} 2. c4 {[%emt 0:00:05]} d5 {[%emt 0:00:05]} 3. cxd5 {[%emt 0:00:06]} cxd5 {[%emt 0:00:08]} 4. exd5 {[%emt 0:00:24]} Nf6 {[%emt 0:00:08]} 5. Bb5+ {[%emt 0:00:07]} Nbd7 {[%emt 0:00:11][%cal Bb8d7,Bd7e5,Be5f3][%mdl 32]} 6. Nc3 {[%emt 0:00:46]} a6 {[%emt 0:00:28] 6...g6 is the modern continuation.} 7. Be2 {[%emt 0:00:51]} (7. Bxd7+ $5 Qxd7 8. Nf3 $11) 7... g6 {[%emt 0:01:33] B10: Caro-Kann: 2 d3 and 2 c4.} 8. Bf3 {[%emt 0:00:29] [#]} Ne5 $146 {[%emt 0:04:22]} ({Predecessor:} 8... Bg7 9. Nge2 O-O 10. d4 Nb6 11. Nf4 Nc4 12. O-O Nd6 13. Re1 Re8 14. h3 b5 15. a3 {1-0 (33) Genrech,L-Quintanar,S Dos Hermanas 2003}) 9. d4 {[%emt 0:01:58]} Nxf3+ {[%emt 0:00:20] The position is equal.} 10. Qxf3 {[%emt 0:00:57]} (10. Nxf3 $11 Nxd5 11. Qb3) 10... Bg7 $15 {[%emt 0:03:43]} 11. h3 {[%emt 0:02:33]} O-O {[%emt 0:02:30][%mdl 1024] Black has compensation.} 12. Nge2 {[%emt 0:00:08]} Qd7 {[%emt 0:01:58]} 13. g4 {[%emt 0:01:35]} (13. d6 $11 {keeps the balance.}) 13... b5 $17 {[%emt 0:03:36]} 14. Nf4 {[%emt 0:00:26]} Bb7 {[%emt 0:02:59]} 15. g5 {[%emt 0:00:08] [#]} Nxd5 {[%emt 0:03:59][%mdl 512]} 16. Ncxd5 {[%emt 0:00:40]} ({Avoid the trap} 16. Nfxd5 $2 b4 17. Qg4 Qxg4 18. hxg4 bxc3 19. Nxe7+ Kh8) 16... Rad8 {[%emt 0:00:56]} 17. Be3 {[%emt 0:01:11][%cal Oa1d1]} Bxd5 {[%emt 0:03:19]} 18. Nxd5 {[%emt 0:01:43]} Qxd5 {[%emt 0:00:06]} 19. Qxd5 {[%emt 0:00:09]} Rxd5 {[%emt 0:00:01]} 20. Rd1 {[%emt 0:08:09]} Rfd8 {[%emt 0:15:49]} 21. Ke2 {[%emt 0:00:12]} Bxd4 {[%emt 0:00:27]} 22. Rxd4 {[%emt 0:00:26]} Rxd4 {[%emt 0:00:07]} 23. Bxd4 {[%emt 0:00:04]} Rxd4 {[%emt 0:00:06][%mdl 4096] Endgame KR-KR} 24. Rc1 {[%emt 0:00:10]} Ra4 {[%emt 0:07:33]} 25. a3 {[%emt 0:00:15]} Rh4 {[%emt 0:00:37]} 26. Rc3 {[%emt 0:00:57]} Kg7 {[%emt 0:03:07]} 27. Kd2 {[%emt 0:00:40]} Rd4+ {[%emt 0:03:35]} (27... b4 $142 28. Rf3 a5) 28. Ke3 {[%emt 0:00:24]} Rd6 {[%emt 0:01:58]} 29. f4 {[%emt 0:00:20]} h6 {[%emt 0:05:45]} 30. h4 {[%emt 0:01:24]} h5 {[%emt 0:01:30]} 31. Rc7 {[%emt 0:00:15]} ({White should play} 31. b4 $15) 31... Re6+ {[%emt 0:08:16]} 32. Kf3 {[%emt 0:01:28]} f6 {[%emt 0:00:27]} 33. Rc5 {[%emt 0:00:52]} fxg5 {[%emt 0:01:31]} 34. hxg5 {[%emt 0:01:32]} Rd6 {[%emt 0:00:52]} 35. Ke4 {[%emt 0:01:09]} Kf7 {[%emt 0:04:50]} 36. f5 $2 {[%emt 0:01:25][%mdl 8192]} (36. Rc1 $17) 36... gxf5+ $19 {[%emt 0:03:59]} 37. Kxf5 $2 {[%emt 0:00:10] [#]} (37. Rxf5+ Kg6 38. Rc5) 37... e6+ $2 {[%emt 0:00:42]} (37... Rd5+ $3 {[%mdl 512]} 38. Rxd5 (38. Ke4 Rxc5) 38... e6+ 39. Ke4 exd5+ 40. Kxd5 Kg6) 38. Kf4 {[%emt 0:01:01]} Rd4+ {[%emt 0:02:10]} 39. Ke3 $2 {[%emt 0:00:20]} (39. Kf3 $17 {was worth a try.}) 39... Rc4 {[%emt 0:07:51]} 40. Re5 {[%emt 0:00:45]} (40. b4 {was the crucial defense.}) 40... Rc2 $1 {[%emt 0:04:19]} 41. g6+ {[%emt 0:31:35]} Kf6 {[%emt 0:30:57]} 42. g7 {[%emt 0:00:06]} Rg2 $2 {[%emt 0:01:28]} (42... Kxg7 $19 43. Rxe6 h4 44. Rxa6 Rxb2 45. Ra7+ Kg6) 43. Kf3 $1 $11 {[%emt 0:00:29]} Rxg7 {[%emt 0:01:55]} (43... Rg1 $5 {[%cal Rf6e5]} 44. Rxh5 Rxg7 $17) 44. Rxh5 {[%emt 0:00:06]} Rd7 {[%emt 0:00:00] And now ...Rd2 would win.} 45. Ke3 {[%emt 0:00:00] Prevents Rd2.} Rd5 {[%emt 0:00:00]} 46. Rh7 {[%emt 0:00:00]} Ke5 {[%emt 0:00:00]} 47. Rc7 {[%emt 0:00:00]} Rd6 {[%emt 0:00:00]} 48. b3 {[%emt 0:00:00]} Kd5 {[%emt 0:00:00]} 49. Rc3 $2 {[%emt 0:00:00][%mdl 8192] [#] Black continues to play with concentration.} (49. Rc8 $11) 49... Rc6 $1 $19 {[%emt 0:00:00]} 50. Rd3+ {[%emt 0:00:00]} Ke5 {[%emt 0:00:00] ...Rc2 is the strong threat.} 51. Ke2 {[%emt 0:00:00]} Rc2+ {[%emt 0:00:00]} 52. Kd1 {[%emt 0:00:00] [#]} Ra2 $1 {[%emt 0:00:00]} 53. b4 {[%emt 0:00:00]} Ke4 {[%emt 0:00:00]} 54. Rh3 {[%emt 0:00:00]} Kd4 {[%emt 0:00:00]} 55. Kc1 {[%emt 0:00:00]} Re2 {[%emt 0:00:00]} 56. Rh4+ {[%emt 0:00:00]} Kd3 {[%emt 0:00:00]} 57. Rh8 {[%emt 0:00:00]} Rc2+ {[%emt 0:00:00]} 58. Kd1 {[%emt 0:00:00]} Rc3 {[%emt 0:00:31]} 59. Rh4 {[%emt 0:00:00]} Rc6 {[%emt 0:03:14]} (59... Rb3 $142 60. Kc1 Kc3 61. Rh3+ Kc4 62. Rh4+ Kd5) 60. Rh3+ {[%emt 0:00:00]} Kd4 {[%emt 0:00:08]} 61. Kd2 {[%emt 0:00:00]} e5 {[%emt 0:00:25][%cal Be6e5,Be5e4][%mdl 32] aiming for ...e4.} 62. Rh8 {[%emt 0:00:00]} e4 {[%emt 0:01:22]} 63. Rd8+ {[%emt 0:00:00]} Ke5 {[%emt 0:01:44]} 64. Re8+ {[%emt 0:00:00]} Re6 {[%emt 0:00:05]} 65. Rc8 {[%emt 0:00:00]} Rd6+ {[%emt 0:00:10]} 66. Ke2 {[%emt 0:00:00]} Rd3 {[%emt 0:00:56]} 67. Re8+ {[%emt 0:00:00]} Kd4 {[%emt 0:00:19]} 68. Rd8+ {[%emt 0:00:00]} Kc4 {[%emt 0:00:14]} 69. Rc8+ {[%emt 0:00:00]} Kb3 {[%emt 0:00:24]} 70. Re8 {[%emt 0:00:00]} Rd4 {[%emt 0:01:06]} 71. Re6 {[%emt 0:00:00]} Kxa3 {[%emt 0:00:12]} 72. Rxa6+ {[%emt 0:00:00]} Kxb4 {[%emt 0:00:05]} 73. Ra8 {[%emt 0:00:00] Black mates.} Kb3 {[%emt 0:00:31]} 74. Rb8 {[%emt 0:00:00]} b4 {[%emt 0:00:11]} 75. Rh8 {[%emt 0:00:00]} Kc3 {[%emt 0:01:00]} 76. Rc8+ {[%emt 0:00:00]} Rc4 {[%emt 0:00:16]} 77. Rb8 {[%emt 0:00:00]} Kc2 {[%emt 0:00:27] Weighted Error Value: White=0.85/Black=0.36} 0-1

[Event "Slovakian-ch Youth 2022"]
[Site "Lubovna"]
[Date "2022.05.22"]
[Round "1.8"]
[White "Nadzamova, Viktoria"]
[Black "Sokolovsky, Jakub"]
[Result "1-0"]
[ECO "B90"]
[WhiteElo "2135"]
[BlackElo "1613"]
[Annotator "TA"]
[PlyCount "93"]
[EventDate "2022.05.22"]
[EventCountry "SVK"]
[SourceTitle "playchess.com"]
[Source "ChessBase"]
[SourceQuality "1"]
[TimeControl "40/5400+30:1800+30"]

{[%evp 21,93,20,25,-8,-9,-62,-64,-56,-51,-105,-104,-97,-91,-154,-181,-179,-186,-175,-191,-185,-173,-210,-156,-156,-160,-150,-32,-135,-62,-258,-245,-433,131,0,0,0,471,479,539,256,237,0,335,310,306,109,128,128,104,44,43,52,59,74,75,120,87,56,59,0,0,0,66,0,376,344,1135,984,976,920,873,835,29986,29987]} 1. e4 {[%emt 0:00:18]} c5 {[%emt 0:00:12]} 2. Nf3 {[%emt 0:00:18]} d6 {[%emt 0:00:22]} 3. d4 {[%emt 0:00:41]} cxd4 {[%emt 0:00:15]} 4. Nxd4 {[%emt 0:00:08]} Nf6 {[%emt 0:00:39]} 5. Nc3 {[%emt 0:00:40]} a6 {[%emt 0:00:35]} 6. f3 {[%emt 0:00:56]} e5 {[%emt 0:01:17]} 7. Nb3 {[%emt 0:00:22]} Be7 {[%emt 0:00:40]} 8. Be3 {[%emt 0:00:36]} Be6 {[%emt 0:01:47]} 9. Qd2 {[%emt 0:00:44]} Nbd7 {[%emt 0:01:50]} 10. g4 {[%emt 0:02:40][%cal Bg2g4,Bg4g5][%mdl 32]} b5 {[%emt 0:03:47]} 11. g5 {[%emt 0:22:32]} Nh5 {[%emt 0:09:20]} 12. Nd5 {[%emt 0:03:31] B90: Sicilian Najdorf: Unusual White 6th moves, 6 Be3 Ng4 and 6 Be3 e5.} Bxd5 {[%emt 0:01:38]} 13. exd5 {[%emt 0:00:38]} (13. Qxd5 $11 O-O 14. Rg1) 13... Nf4 $1 $15 {[%emt 0:21:03]} 14. h4 {[%emt 0:04:47] Black is slightly better.} h6 {[%emt 0:19:37][%cal Bh7h6,Bh6g5][%mdl 32]} 15. Na5 {[%emt 0:08:39]} (15. Bxf4 $15 exf4 16. gxh6 Bxh4+ 17. Kd1 Rxh6 18. a4) 15... hxg5 $17 {[%emt 0:01:57]} 16. Nc6 {[%emt 0:01:18]} Qc7 {[%emt 0:01:18] [#]} 17. Nxe7 $146 {[%emt 0:00:49]} (17. h5 $142) ({Predecessor:} 17. O-O-O Rc8 18. Bxf4 gxf4 19. Bh3 Rxh4 20. Qg2 g6 21. Kb1 Bf6 22. Be6 Nf8 23. Bxc8 Qxc8 24. Rxh4 Bxh4 {0-1 (46) Abrahamyan,T (2385)-Przybylski,W (2312) Chess.com INT 2019}) 17... Kxe7 {[%emt 0:00:03]} 18. Rg1 {[%emt 0:03:00]} Rxh4 {[%emt 0:04:22]} 19. Rxg5 {[%emt 0:02:37]} g6 {[%emt 0:05:35]} 20. O-O-O {[%emt 0:04:10]} Rah8 {[%emt 0:04:21]} 21. Bxf4 {[%emt 0:04:55]} Rxf4 {[%emt 0:00:02]} 22. Rxe5+ {[%emt 0:01:43]} Nxe5 {[%emt 0:01:42]} 23. Qxf4 {[%emt 0:00:08]} Rh5 {[%emt 0:08:36]} (23... Qc5 $17 24. Re1 Qf2) 24. Qe4 {[%emt 0:02:35]} (24. Qg3 $15) 24... Kf8 {[%emt 0:01:13]} (24... Qc5 $17 25. Be2 (25. f4 Rh4 $17) 25... Rh2) 25. Re1 $2 {[%emt 0:02:54]} (25. f4 $15 Nd7 26. Qf3 (26. Re1 Nf6 $15)) 25... Rh2 $19 {[%emt 0:04:58] Strongly threatening ...f5.} 26. c3 $2 {[%emt 0:03:52]} (26. Re2 Rh1 27. Re1) 26... b4 $2 {[%emt 0:01:05]} ({Better is} 26... Qb6 $19 {White must now prevent ...Qf2.} 27. Qe3 Qxe3+ 28. Rxe3 Rh1) 27. Qxb4 {[%emt 0:08:59]} ({White has to play} 27. f4 $1 $16 {[%cal Rf4e5]} bxc3 28. fxe5) 27... Nxf3 $11 {[%emt 0:00:02]} 28. Re3 {[%emt 0:00:20]} Ne5 {[%emt 0:01:40][%mdl 8192]} 29. Rxe5 $1 $18 {[%emt 0:01:01]} a5 {[%emt 0:04:12]} 30. Qa3 {[%emt 0:01:37]} (30. Qf4 $142) 30... Qb6 {[%emt 0:00:42]} 31. Re4 $2 {[%emt 0:11:07]} ({White should play} 31. Be2 $18) 31... Qf2 {[%emt 0:00:20][%mdl 8192]} (31... Rh1 $1 $11 32. Re1 Rxf1 33. Rxf1 Qe3+ 34. Kd1 Qd3+ 35. Ke1 Qe3+ 36. Kd1 Qd3+ 37. Ke1 Qe3+ 38. Kd1) 32. Qxd6+ {[%emt 0:02:52]} Kg8 {[%emt 0:00:06][%csl Gh2][%cal Rf2c2]} 33. Qd8+ $2 {[%emt 0:02:11]} (33. Be2 $18 {Threatens to win with Re8+.} Qe1+ 34. Kc2 Rxe2+ 35. Rxe2 Qxe2+ 36. Kb3) 33... Kh7 $16 {[%emt 0:00:15][%csl Gh2][%cal Rf2c2]} 34. Be2 {[%emt 0:00:53]} Qe1+ {[%emt 0:00:25]} 35. Kc2 {[%emt 0:00:38]} Rxe2+ {[%emt 0:00:09]} 36. Rxe2 {[%emt 0:00:02]} Qxe2+ $14 {[%emt 0:00:14][%mdl 4096] Endgame KQ-KQ} 37. Kb3 {[%emt 0:00:25]} Qb5+ {[%emt 0:00:03] [#]} 38. Ka3 $1 {[%emt 0:02:19]} Qc5+ {[%emt 0:00:06]} 39. Ka4 {[%emt 0:01:01] White is more active.} Qc4+ {[%emt 0:01:03]} 40. Ka3 {[%emt 0:00:33]} (40. Kxa5 $14 Qxa2+ 41. Kb5 Qxb2+ 42. Kc4) 40... Qc5+ $11 {[%emt 0:00:14]} 41. Ka4 {[%emt 0:30:20]} (41. Kb3 $11 Qb5+ 42. Ka3 Qc5+) 41... Qc4+ $14 {[%emt 0:33:15]} 42. b4 {[%emt 0:01:41]} (42. Kxa5 $14 Qxa2+ 43. Kb5 Qxb2+ 44. Kc4) 42... Qxa2+ $2 {[%emt 0:00:30][%mdl 8192]} (42... axb4 $11 43. cxb4 Qa6+ 44. Qa5 Qe2) 43. Kb5 $18 {[%emt 0:00:30]} a4 {[%emt 0:00:30]} (43... axb4 44. cxb4 Qd2 45. Qh4+ Kg8) 44. Qh4+ {[%emt 0:00:30]} Kg8 {[%emt 0:00:30]} 45. Qd4 {[%emt 0:00:30] Hoping for d6.} a3 {[%emt 0:00:30] [#]} 46. d6 $1 {[%emt 0:00:30][%cal Bd5d6,Bd6d7][%mdl 32] Threatening mate with d7.} Qb2 {[%emt 0:00:30]} 47. d7 {[%emt 0:00:30] Never resign too early!  Weighted Error Value: White=0.72/Black=0.97} 1-0

[Event "Slovakian-ch Youth 2022"]
[Site "Lubovna"]
[Date "2022.05.21"]
[Round "1.8"]
[White "Krivosik, Matus"]
[Black "Magda, Filip"]
[Result "0-1"]
[ECO "A48"]
[WhiteElo "1224"]
[BlackElo "1624"]
[Annotator "NA COMBH"]
[PlyCount "64"]
[EventDate "2022.05.22"]
[EventCountry "SVK"]
[SourceTitle "playchess.com"]
[Source "ChessBase"]
[SourceQuality "1"]
[TimeControl "40/5400+30:1800+30"]

1. d4 {[%emt 0:00:04]} Nf6 {[%emt 0:00:12]} 2. Bf4 {[%emt 0:00:31]} g6 {[%emt 0:01:17]} 3. Nf3 {[%emt 0:00:45]} Bg7 {[%emt 0:00:29]} 4. Qd2 {[%emt 0:00:59]} O-O {[%emt 0:00:51]} 5. Bh6 {[%emt 0:00:32]} d6 {[%emt 0:00:43]} 6. Bxg7 {[%emt 0:00:29]} Kxg7 {[%emt 0:00:05]} 7. Nc3 {[%emt 0:01:48]} c5 {[%emt 0:01:23]} 8. d5 {[%emt 0:01:21]} Na6 {[%emt 0:02:37]} 9. O-O-O {[%emt 0:01:50]} Nc7 {[%emt 0:02:19]} 10. h3 {[%emt 0:02:39]} b5 {[%emt 0:01:33]} 11. g4 {[%emt 0:09:02]} h6 {[%emt 0:02:38]} 12. g5 {[%emt 0:02:15]} hxg5 {[%emt 0:02:04]} 13. Qxg5 {[%emt 0:01:04]} b4 {[%emt 0:01:01]} 14. Nb1 {[%emt 0:00:28]} Bb7 {[%emt 0:03:15]} 15. c4 {[%emt 0:01:34]} bxc3 {[%emt 0:03:20]} 16. Nxc3 {[%emt 0:00:06]} e6 {[%emt 0:07:51]} 17. dxe6 {[%emt 0:06:07]} Nxe6 {[%emt 0:00:07]} 18. Qd2 {[%emt 0:01:46]} d5 {[%emt 0:03:47]} 19. Bg2 {[%emt 0:04:33]} d4 {[%emt 0:02:19]} 20. Nb5 {[%emt 0:01:26]} Ne4 {[%emt 0:01:37]} 21. Qe1 {[%emt 0:01:22]} Qb6 {[%emt 0:02:53]} 22. Na3 {[%emt 0:00:54]} N4g5 {[%emt 0:04:59]} 23. Nc4 {[%emt 0:03:26]} Qa6 {[%emt 0:02:31]} 24. Na5 {[%emt 0:03:34]} Nxf3 {[%emt 0:01:56]} 25. Bxf3 {[%emt 0:01:09]} Bxf3 {[%emt 0:02:57]} 26. exf3 {[%emt 0:00:53]} Rab8 {[%emt 0:02:51]} 27. Kb1 {[%emt 0:02:34]} Rb5 {[%emt 0:05:09]} 28. Nc4 {[%emt 0:01:41]} Rfb8 {[%emt 0:02:26]} 29. Rd2 {[%emt 0:02:50]} Rb4 30. Ne5 {[%emt 0:01:17]} Qb7 {[%emt 0:08:27]} 31. Qe2 {[%emt 0:01:43]} Nf4 {[%emt 0:01:41]} 32. Qf1 {[%emt 0:05:20]} Rxb2+ {[%emt 0:00:20]} 0-1

[Event "Slovakian-ch Youth 2022"]
[Site "Lubovna"]
[Date "2022.05.21"]
[Round "1.9"]
[White "Visvader, Kristof"]
[Black "Valchev, Martin V"]
[Result "1-0"]
[ECO "C01"]
[WhiteElo "1607"]
[BlackElo "1193"]
[Annotator "NA COMBH"]
[PlyCount "81"]
[EventDate "2022.05.22"]
[EventCountry "SVK"]
[SourceTitle "playchess.com"]
[Source "ChessBase"]
[SourceQuality "1"]
[TimeControl "40/5400+30:1800+30"]

1. e4 {[%emt 0:00:06]} e6 {[%emt 0:00:15]} 2. d4 {[%emt 0:00:26]} d5 {[%emt 0:00:07]} 3. exd5 {[%emt 0:00:54]} exd5 {[%emt 0:00:29]} 4. Nf3 {[%emt 0:01:17]} Nf6 {[%emt 0:01:04]} 5. Bd3 {[%emt 0:01:53]} Nc6 {[%emt 0:01:32]} 6. O-O {[%emt 0:01:22]} Bd6 {[%emt 0:01:03]} 7. Re1+ {[%emt 0:01:21]} Be6 {[%emt 0:00:19]} 8. Bf5 {[%emt 0:04:15]} Qd7 {[%emt 0:04:20]} 9. Qe2 {[%emt 0:03:08]} Nd8 {[%emt 0:02:22]} 10. Ng5 {[%emt 0:02:39]} Be7 {[%emt 0:02:57]} 11. Bxe6 {[%emt 0:02:24]} Nxe6 {[%emt 0:00:18]} 12. Nxe6 {[%emt 0:00:03]} fxe6 {[%emt 0:00:13]} 13. Qxe6 {[%emt 0:00:07]} Qxe6 {[%emt 0:00:15]} 14. Rxe6 {[%emt 0:00:07]} Kd7 {[%emt 0:02:02]} 15. Re2 {[%emt 0:00:57]} Rae8 {[%emt 0:00:46]} 16. c3 {[%emt 0:02:23]} Bd6 {[%emt 0:02:32]} 17. Rxe8 {[%emt 0:09:57]} Rxe8 {[%emt 0:00:26]} 18. Bd2 {[%emt 0:02:35]} Bf4 {[%emt 0:03:21]} 19. f3 {[%emt 0:01:27]} Nh5 {[%emt 0:09:01]} 20. g3 {[%emt 0:04:30]} Be3+ {[%emt 0:10:58]} 21. Bxe3 {[%emt 0:00:33]} Rxe3 {[%emt 0:00:07]} 22. Kf2 {[%emt 0:00:06]} Re6 {[%emt 0:00:25]} 23. Nd2 {[%emt 0:00:25]} c6 {[%emt 0:00:13]} 24. Re1 {[%emt 0:00:19]} Rxe1 {[%emt 0:00:19]} 25. Kxe1 {[%emt 0:00:08]} g6 {[%emt 0:00:30]} 26. Kf2 {[%emt 0:00:10]} Kd6 {[%emt 0:00:08]} 27. Ke3 {[%emt 0:00:40]} g5 {[%emt 0:00:22]} 28. f4 {[%emt 0:01:13]} gxf4+ {[%emt 0:00:08]} 29. gxf4 {[%emt 0:00:03]} Ke6 {[%emt 0:00:13]} 30. Nf1 {[%emt 0:01:39]} Kf5 {[%emt 0:00:14]} 31. Ng3+ {[%emt 0:00:13]} Nxg3 {[%emt 0:00:21]} 32. hxg3 {[%emt 0:01:41]} Kg4 {[%emt 0:00:07]} 33. b3 {[%emt 0:01:58]} h5 {[%emt 0:00:25]} 34. Kf2 {[%emt 0:00:56]} a6 {[%emt 0:00:25]} 35. a4 {[%emt 0:05:00]} h4 {[%emt 0:00:17]} 36. gxh4 {[%emt 0:00:12]} Kxf4 {[%emt 0:00:05]} 37. h5 {[%emt 0:00:29]} Kg5 {[%emt 0:00:02]} 38. Ke3 {[%emt 0:00:28]} Kxh5 {[%emt 0:00:03]} 39. Kf4 {[%emt 0:00:07]} Kg6 {[%emt 0:00:04]} 40. Ke5 {[%emt 0:00:08]} Kf7 {[%emt 0:01:35]} 41. Kd6 1-0

[Event "Slovakian-ch Youth 2022"]
[Site "Lubovna"]
[Date "2022.05.22"]
[Round "1.9"]
[White "Babjak, Samuel"]
[Black "Rucek, Kristian"]
[Result "0-1"]
[ECO "D47"]
[WhiteElo "1577"]
[BlackElo "2128"]
[Annotator "TA"]
[PlyCount "97"]
[EventDate "2022.05.22"]
[EventCountry "SVK"]
[SourceTitle "playchess.com"]
[Source "ChessBase"]
[SourceQuality "1"]
[TimeControl "40/5400+30:1800+30"]

{[%evp 18,97,16,13,46,35,36,49,88,94,168,94,158,100,74,0,0,0,54,31,87,59,297,304,279,-267,-188,-188,-185,-222,-214,-294,-295,-453,-97,-116,-88,-456,-456,-441,-442,-442,-440,-440,-382,-372,-381,-378,-379,-376,-374,-368,0,0,0,-371,-373,-372,-370,-367,-367,-364,-360,-343,-345,-406,-375,-370,-351,-502,-506,-463,-375,-385,-372,-29989,-29990,-29990,-29991,-29991,-29987,-29999]} 1. d4 {[%emt 0:01:17]} d5 {[%emt 0:00:12]} 2. c4 {[%emt 0:00:04]} e6 {[%emt 0:00:11]} 3. Nc3 {[%emt 0:00:06]} c6 {[%emt 0:01:08]} 4. Nf3 {[%emt 0:00:11]} Nf6 {[%emt 0:00:06]} 5. e3 {[%emt 0:00:18]} Nbd7 {[%emt 0:00:09]} 6. Bd3 {[%emt 0:02:50]} dxc4 {[%emt 0:00:05]} 7. Bxc4 {[%emt 0:00:05]} b5 {[%emt 0:00:05]} 8. Be2 {[%emt 0:00:28]} Bb7 {[%emt 0:00:06]} 9. O-O {[%emt 0:00:23]} a6 {[%emt 0:00:46]} 10. e4 {[%emt 0:00:48]} b4 {[%emt 0:03:22] D47: Semi-Slav: Meran System.} 11. e5 {[%emt 0:02:37]} bxc3 {[%emt 0:02:20]} 12. exf6 {[%emt 0:00:06]} gxf6 {[%emt 0:06:44] White is slightly better.} 13. bxc3 {[%emt 0:00:17]} Bd6 {[%emt 0:00:58] [#]} (13... c5 $16 {might work better.}) 14. Bh6 $146 {[%emt 0:03:15]} (14. Rb1 $18 Rb8 15. c4) ({Predecessor:} 14. c4 c5 15. d5 Qc7 16. Rb1 Ke7 17. Re1 Rag8 18. Bf1 Ne5 19. Nxe5 fxe5 20. Qh5 {½-½ (50) Tunik,G (2442)-Korobov,A (2411) Bor 2000}) 14... Rg8 {[%emt 0:00:51]} (14... c5 $142) 15. Re1 {[%emt 0:01:18]} ({Don't play} 15. Qb1 $6 Qc7 $16) ({White should try} 15. c4) 15... c5 $16 {[%emt 0:00:58]} 16. Bc4 {[%emt 0:11:48]} ({White should play} 16. Rb1 $16 Qc7 17. Kh1) 16... cxd4 $11 {[%emt 0:01:33]} 17. cxd4 {[%emt 0:00:32][%cal Oc4e6]} Nb6 {[%emt 0:06:12]} (17... Bxh2+ $11 18. Kf1 (18. Nxh2 $2 Rxg2+ 19. Kf1 Rxh2 $19) 18... Nb6) 18. Bd3 {[%emt 0:05:36]} f5 {[%emt 0:21:11]} (18... Bb4 $14) 19. Bd2 $16 {[%emt 0:10:41]} Rxg2+ $2 {[%emt 0:11:03]} 20. Kxg2 $18 {[%emt 0:01:06]} Qh4 {[%emt 0:00:20]} 21. Be4 $4 {[%emt 0:10:33][%mdl 8192]} Bxe4 {[%emt 0:00:21]} 22. Rxe4 {[%emt 0:00:25]} Qxe4 {[%emt 0:00:05]} 23. Rb1 {[%emt 0:06:54]} Nd5 {[%emt 0:09:54]} 24. Qa4+ {[%emt 0:07:02]} Ke7 {[%emt 0:04:33]} 25. Rb7+ {[%emt 0:03:40]} (25. Rb3 $142) 25... Nc7 $2 {[%emt 0:01:34]} (25... Kf6 $19 {has better winning chances. ( -> ...Rg8+)} 26. Qd1 Rg8+ 27. Kf1 {[#]} Ne3+ $1 {[%mdl 512]} 28. Bxe3 Qxb7) 26. Qb3 $17 {[%emt 0:05:04]} Qe2 {[%emt 0:02:54] Threatens to win with ...Rg8+. The board is on fire.} 27. Rxc7+ $2 {[%emt 0:09:08][%mdl 8192]} Bxc7 $19 {[%emt 0:00:50]} 28. Qb7 {[%emt 0:00:23]} Rg8+ {[%emt 0:04:13]} 29. Bg5+ {[%emt 0:01:03]} Kd6 {[%emt 0:00:34] Hoping for ...f6.} 30. Qb4+ {[%emt 0:00:58]} Kd7 {[%emt 0:01:58]} 31. Qe7+ {[%emt 0:01:51]} Kc8 {[%emt 0:01:12] ...Qe4 is the strong threat.} 32. Qxf7 {[%emt 0:01:38] [#]} Rxg5+ {[%emt 0:01:48][%mdl 512]} 33. Nxg5 {[%emt 0:00:08][%mdl 4096] Endgame KQB-KQN} Qg4+ {[%emt 0:00:07]} 34. Kf1 {[%emt 0:00:23]} Qd1+ {[%emt 0:00:04]} 35. Kg2 {[%emt 0:00:11]} Qg4+ {[%emt 0:00:02]} 36. Kf1 {[%emt 0:00:07]} Qxg5 {[%emt 0:00:06]} 37. Qxe6+ {[%emt 0:00:57]} Kb7 {[%emt 0:00:58]} 38. Qd5+ {[%emt 0:02:00]} Kb8 {[%emt 0:00:22]} 39. Qb3+ {[%emt 0:00:26]} Ka7 {[%emt 0:00:19]} 40. Qc4 {[%emt 0:03:14]} Qe7 {[%emt 0:02:04]} 41. h3 {[%emt 0:31:23]} f4 {[%emt 0:30:15][%cal Bf5f4,Bf4f3][%mdl 32]} 42. Qd5 {[%emt 0:01:07]} h6 {[%emt 0:02:54]} 43. Qc6 {[%emt 0:02:05]} (43. Kg2 $142) 43... Qd6 {[%emt 0:00:14]} 44. Qe4 {[%emt 0:00:26]} a5 {[%emt 0:00:51]} 45. Kg2 {[%emt 0:01:34]} Qf6 {[%emt 0:01:16]} 46. Qh7 $2 {[%emt 0:02:05]} (46. d5 $19) 46... f3+ {[%emt 0:00:18] Black mates.} 47. Kf1 {[%emt 0:00:09]} Qc6 {[%emt 0:00:39][%cal Rc6c1]} 48. Qb1 {[%emt 0:00:48]} Qc4+ {[%emt 0:00:04]} 49. Ke1 {[%emt 0:00:37] Weighted Error Value: White=0.67/Black=0.63} 0-1